fUSD/lending_fUSD_20240712
["ID","MTS","AMOUNT","RATE_DAILY","PERIOD"]
[331747870,1720747849009,-181.05688669,0.00013799,2]
[331747871,1720747849018,-500.0,0.00013799,2]
[331747872,1720747849027,-500.0,0.00013799,2]
[331747873,1720747849036,-500.0,0.00013799,2]
[331747874,1720747849045,-290.29184553,0.00013799,2]
[331747875,1720747849054,-500.0,0.00013799,2]
[331747876,1720747849063,-159.71018895,0.00013799,2]
[331747877,1720747849073,-500.0,0.00013799,2]
[331747878,1720747849082,-500.0,0.00013799,2]
[331747879,1720747849098,-500.0,0.00013799,2]
[331747880,1720747849108,-219.98687003,0.00013799,2]
[331747881,1720747849118,-500.0,0.00013799,2]
[331747882,1720747849127,-500.0,0.00013799,2]
[331747883,1720747849136,-500.0,0.00013799,2]
[331747884,1720747849146,-500.0,0.00013799,2]
[331747885,1720747849155,-526.85444165,0.00013799,2]
[331747886,1720747849165,-500.0,0.00013799,2]
[331747887,1720747849174,-500.0,0.00013799,2]
[331747888,1720747849183,-377.765131,0.00013799,2]
[331747889,1720747849193,-556.40347392,0.00013799,2]
[331747890,1720747849202,-500.0,0.00013799,2]
[331747891,1720747849212,-360.1488652,0.00013799,2]
[331747892,1720747849221,-500.0,0.00013799,2]
[331747893,1720747849230,-500.0,0.00013799,2]
[331747894,1720747849240,-500.0,0.00013799,2]
[331747895,1720747849249,-500.0,0.00013799,2]
[331747896,1720747849259,-500.0,0.00013799,2]
[331747897,1720747849269,-500.0,0.00013799,2]
[331747898,1720747849279,-500.0,0.00013799,2]
[331747899,1720747849288,-589.02793473,0.00013799,2]
[331747900,1720747849298,-500.0,0.00013799,2]
[331747901,1720747849308,-566.32,0.00013799,2]
[331747902,1720747849318,-254.53788377,0.00013799,2]
[331747903,1720747849327,-500.0,0.00013799,2]
[331747904,1720747849342,-585.88363488,0.00013799,2]
[331747905,1720747849351,-500.0,0.00013799,2]
[331747906,1720747849360,-500.0,0.00013799,2]
[331747907,1720747849370,-518.54694766,0.00013799,2]
[331747908,1720747849380,-2513.18458831,0.00013799,3]
[331747909,1720747849390,-192.60123912,0.00013799,2]
[331747910,1720747849399,-500.0,0.00013799,2]
[331747911,1720747849408,-500.0,0.00013799,2]
[331747912,1720747849417,-500.0,0.00013799,2]
[331747913,1720747849427,-500.0,0.00013799,2]
[331747914,1720747849436,-500.0,0.00013799,2]
[331747915,1720747849447,-438.36292055,0.00013799,2]
[331747916,1720747849456,-280.58,0.00013799,2]
[331747917,1720747849466,-318.54726046,0.00013799,2]
[331747918,1720747849475,-500.0,0.00013799,2]
[331747919,1720747849485,-500.0,0.00013799,2]
[331747920,1720747849495,-500.0,0.00013799,2]
[331747921,1720747849504,-585.10961659,0.00013799,2]
[331747922,1720747849514,-160.33196086,0.00013799,2]
[331747923,1720747849524,-500.0,0.00013799,2]
[331747924,1720747849533,-500.0,0.00013799,2]
[331747925,1720747849543,-500.0,0.00013799,2]
[331747926,1720747849552,-500.0,0.00013799,2]
[331747927,1720747849561,-398.83,0.00013799,2]
[331747928,1720747849571,-500.0,0.00013799,2]
[331747929,1720747849580,-500.0,0.00013799,2]
[331747930,1720747849594,-500.0,0.00013799,2]
[331747931,1720747849603,-500.0,0.00013799,2]
[331747932,1720747849613,-500.0,0.00013799,2]
[331747933,1720747849622,-500.0,0.00013799,2]
[331747934,1720747849632,-500.0,0.00013799,2]
[331747935,1720747849641,-500.0,0.00013799,2]
[331747936,1720747849651,-500.0,0.00013799,2]
[331747937,1720747849661,-500.0,0.00013799,2]
[331747938,1720747849670,-500.0,0.00013799,2]
[331747939,1720747849680,-500.0,0.00013799,2]
[331747940,1720747849690,-500.0,0.00013799,2]
[331747941,1720747849699,-500.0,0.00013799,2]
[331747942,1720747849709,-500.0,0.00013799,2]
[331747943,1720747849721,-500.0,0.00013799,2]
[331747944,1720747849732,-552.42,0.00013799,2]
[331747945,1720747849741,-153.26189581,0.00013799,2]
[331747946,1720747849751,-176.40972818,0.00013799,2]
[331747947,1720747849760,-153.26189575,0.00013799,2]
[331747948,1720747849769,-153.26189575,0.00013799,2]
[331747949,1720747849779,-497.60792274,0.00013799,2]
[331747950,1720747849788,-153.26189575,0.00013799,2]
[331747951,1720747849798,-502.81462971,0.00013799,2]
[331747952,1720747849809,-153.26189575,0.00013799,2]
[331747953,1720747849821,-500.0,0.00013799,2]
[331747954,1720747849830,-302.39602648,0.00013799,2]
[331747955,1720747849846,-500.0,0.00013799,2]
[331747956,1720747849855,-150.0,0.000138,2]
[331747957,1720747849865,-614.0,0.000138,2]
[331747958,1720747849875,-174817.51706961,0.000138,2]
[331747959,1720747850108,-293973.89871846,0.000138,2]
[331747960,1720747850284,-127668.81892663,0.000138,2]
[331747961,1720747850295,-987.04243907,0.000138,2]
[331747962,1720747850307,-424.57948447,0.000138,2]
[331747963,1720747850318,-652.82532851,0.000138,2]
[331747964,1720747850329,-108419.84181793,0.000138,2]
[331747965,1720747850348,-18957.30321431,0.000138,2]
[331747966,1720747850404,-7954.59575223,0.000138,2]
[331747967,1720747850417,-34574.41272692,0.000138,2]
[331747968,1720747850430,-522.809,0.000138,2]
[331747969,1720747850441,-5675.0,0.000138,2]
[331747970,1720747850452,-568.13080662,0.000138,2]
[331747971,1720747850464,-1402.60259041,0.000138,2]
[331747972,1720747850476,-368.66286597,0.000138,2]
[331747973,1720747850488,-14901.011465,0.000138,2]
[331747974,1720747850500,-35789.09987259,0.000138,2]
[331747975,1720747850709,-6978.5,0.000138,2]
[331747976,1720747850721,-623.76536916,0.000138,2]
[331747977,1720747850751,-570.0,0.000138,2]
[331747978,1720747850763,-571.17541304,0.000138,2]
[331747979,1720747850775,-1906.82843954,0.000138,2]
[331747980,1720747850824,-500.0,0.00013797,2]
[331747981,1720747850842,-17.31705091,0.000138,2]
[331747982,1720747850854,-570.615,0.000138,2]
[331747983,1720747850866,-319.92311454,0.000138,2]
[331747984,1720747866085,6225.4262621,0.00011199,2]
[331747985,1720747866229,-1023.445605,0.00013699,2]
[331747986,1720747866240,-300.0,0.00013699,2]
[331747987,1720747866251,-555.75182001,0.00013699,2]
[331747988,1720747866260,-174.24817999,0.000137,2]
[331747989,1720747866271,-149.60948946,0.000137,2]
[331747990,1720747866280,-500.0,0.00013797,2]
[331747991,1720747866290,-2285.51698675,0.000138,2]
[331747992,1720747866300,-2339.34418779,0.000138,2]
[331747993,1720747866311,-260.05335614,0.000138,2]
[331747994,1720747866322,-15451.33542455,0.000138,2]
[331747995,1720747866333,-1426.72690205,0.000138,2]
[331747996,1720747866344,-767.40000001,0.000138,2]
[331747997,1720747866390,-1701.31012425,0.000138,2]
[331747998,1720747866402,-4353.18489459,0.000138,2]
[331747999,1720747866413,-5719.9,0.000138,2]
[331748000,1720747866674,500.0,0.0001126,2]
[331748001,1720747897285,3006.88964089,0.00025,60]
[331748002,1720747929679,513.0979161,0.0001126,2]
[331748003,1720747929710,666.69775098,0.0001126,2]
[331748004,1720747929733,21555.73754992,0.0001126,2]
[331748006,1720748039744,11130.21069908,0.00011199,2]
[331748007,1720748043352,5632.7853053,0.00011199,2]
[331748008,1720748098839,515.81,0.0001074,2]
[331748009,1720748180651,689.7784438,0.00011199,2]
[331748011,1720748216507,485.19683811,0.00011199,2]
[331748012,1720748248007,155.27741337,0.00011199,2]
[331748013,1720748272372,155.37355018,0.00011199,2]
[331748014,1720748274534,155.3860576,0.00011199,2]
[331748015,1720748287086,155.17868734,0.00011199,2]
[331748016,1720748290681,155.22813673,0.00011199,2]
[331748017,1720748298065,155.0,0.00011199,2]
[331748018,1720748300293,301.40135343,0.00011199,2]
[331748019,1720748308278,155.14707498,0.00011199,2]
[331748020,1720748321208,194.5651026,0.00011199,2]
[331748021,1720748336844,165.59696297,0.00011199,2]
[331748022,1720748339236,236.06027157,0.00011199,2]
[331748023,1720748364994,155.29000583,0.00011199,2]
[331748024,1720748393681,1179.79566708,0.00011199,2]
[331748025,1720748465486,227.32181018,0.00011199,2]
[331748026,1720748504521,266.58846553,0.00011199,2]
[331748027,1720748609059,156.9826906,0.00011199,2]
[331748028,1720748658649,490.01,0.00010937,2]
[331748029,1720748680695,167.07121,0.00025,62]
[331748030,1720748684153,588.41,0.00010959,2]
[331748031,1720748704858,155.74846367,0.00011199,2]
[331748032,1720748710135,451.45890392,0.00011199,2]
[331748033,1720748715924,155.17827913,0.00011199,2]
[331748034,1720748721295,276.69741953,0.00011199,2]
[331748035,1720748751609,116.66539742,0.00011199,2]
[331748036,1720748751629,38.56427217,0.00011199,2]
[331748037,1720748784676,308.57978136,0.00011199,2]
[331748039,1720748810597,155.95519342,0.00011199,2]
[331748040,1720748848766,254.355098,0.00027,120]
[331748041,1720748898805,457.07263416,0.00011199,2]
[331748042,1720748910340,39.82811889,0.00011199,2]
[331748043,1720748910360,115.17188111,0.00011199,2]
[331748044,1720748930010,227.32181018,0.00011199,2]
[331748045,1720748930769,369.30171004,0.00025,60]
[331748049,1720748969794,-300.0,0.00011531,2]
[331748050,1720748969827,-5615.94065389,0.00011532,2]
[331748051,1720748969860,-5915.94065389,0.00011532,2]
[331748052,1720748969923,-2219.11869222,0.00011532,2]
[331748053,1720748969955,-160.39430934,0.000116,2]
[331748054,1720748969984,-1255.0,0.00011699,2]
[331748055,1720748970014,-2281.42765233,0.000117,2]
[331748056,1720748970061,-849.41518777,0.000117,2]
[331748057,1720748980250,155.0,0.00011199,2]
[331748058,1720749001625,452.90893766,0.00011199,2]
[331748059,1720749001923,49.59737105,0.00011199,2]
[331748060,1720749001944,283.11220007,0.00011199,2]
[331748061,1720749002503,321.32517912,0.00011199,2]
[331748062,1720749007399,155.0,0.00011199,2]
[331748063,1720749019856,171.30935062,0.00011199,2]
[331748064,1720749023412,69.25327019,0.00011199,2]
[331748065,1720749023436,85.74672981,0.00011199,2]
[331748083,1720749032487,-176.84544331,0.000115,2]
[331748084,1720749032496,-150.0,0.00012247,2]
[331748085,1720749032513,-9.37455669,0.00012273,2]
[331748086,1720749032524,-206.15745953,0.00012273,2]
[331748087,1720749032533,-209.19054581,0.00012273,2]
[331748088,1720749032542,-250.0,0.00012362,2]
[331748089,1720749032551,-200.0,0.00012455,2]
[331748090,1720749032560,-130.52745342,0.00012512,2]
[331748091,1720749032571,-43.54254658,0.00012512,2]
[331748092,1720749032582,-231.76694272,0.0001254,2]
[331748094,1720749038106,-155.61715044,0.00012314,2]
[331748095,1720749038116,-563.75911404,0.0001254,2]
[331748096,1720749038128,-485.34394324,0.0001254,2]
[331748097,1720749038138,-269.8,0.00012631,2]
[331748098,1720749038149,-198.54,0.00012644,2]
[331748099,1720749038158,-4070.97,0.00012644,2]
[331748100,1720749038168,-7546.7,0.00012655,2]
[331748101,1720749038177,-643.19,0.00012655,2]
[331748102,1720749038187,-1972.08,0.00012674,2]
[331748103,1720749038197,-1000.0,0.00012807,2]
[331748104,1720749038207,-539.40708493,0.00012904,2]
[331748105,1720749038217,-1250.0,0.00013,2]
[331748106,1720749038227,-534.28,0.00013178,2]
[331748107,1720749038237,-490.01,0.00013201,2]
[331748108,1720749038246,-170.93041,0.00013331,2]
[331748109,1720749038257,-277.430759,0.00013331,2]
[331748110,1720749038267,-863.311966,0.00013331,2]
[331748111,1720749038277,-154.829921,0.00013331,2]
[331748112,1720749038287,-178.897541,0.00013331,2]
[331748113,1720749038296,-178.315863,0.00013331,2]
[331748114,1720749038306,-198.205286,0.00013331,2]
[331748115,1720749038316,-1338.705002,0.00013331,2]
[331748116,1720749038325,-308.57978136,0.00013472,2]
[331748117,1720749038335,-170.93041,0.00013498,2]
[331748118,1720749038345,-277.430759,0.00013498,2]
[331748119,1720749038355,-863.311966,0.00013498,2]
[331748120,1720749038365,-1338.705002,0.00013498,2]
[331748121,1720749038375,-155.09642674,0.00013543,2]
[331748122,1720749038384,-377.51045268,0.00013543,2]
[331748123,1720749038394,-227.32181018,0.00013543,2]
[331748124,1720749038404,-3264.64882711,0.00013543,2]
[331748125,1720749038413,-154.829921,0.00013554,2]
[331748126,1720749038423,-1388.0,0.000136,2]
[331748127,1720749038432,-170.93041,0.00013665,2]
[331748128,1720749038441,-277.430759,0.00013665,2]
[331748129,1720749038451,-863.311966,0.00013665,2]
[331748130,1720749038461,-178.897541,0.00013665,2]
[331748131,1720749038470,-178.315863,0.00013665,2]
[331748132,1720749038480,-1338.705002,0.00013665,2]
[331748133,1720749038490,-500.0,0.0001369,2]
[331748134,1720749038500,-1598.89573,0.0001369,2]
[331748135,1720749038514,-172.46391784,0.00013696,2]
[331748136,1720749038524,-192.3693,0.00013697,2]
[331748137,1720749038535,-1612.31940063,0.00013697,2]
[331748138,1720749038545,-39942.2578,0.00013698,2]
[331748140,1720749038554,-1000.0,0.00013698,2]
[331748141,1720749038563,-1000.0,0.00013699,2]
[331748143,1720749038573,-1000.0,0.00013699,2]
[331748145,1720749038584,-1000.0,0.00013699,2]
[331748146,1720749038594,-1000.0,0.00013699,2]
[331748147,1720749038604,-1000.0,0.00013699,2]
[331748148,1720749038614,-1000.0,0.00013699,2]
[331748149,1720749038624,-1000.0,0.00013699,2]
[331748150,1720749038633,-1000.0,0.00013699,2]
[331748151,1720749038643,-1000.0,0.00013699,2]
[331748152,1720749038652,-1000.0,0.00013699,2]
[331748153,1720749038662,-1000.0,0.00013699,2]
[331748154,1720749038671,-1000.0,0.00013699,2]
[331748155,1720749038681,-1000.0,0.00013699,2]
[331748156,1720749038691,-1000.0,0.00013699,2]
[331748157,1720749038701,-1000.0,0.00013699,2]
[331748158,1720749038710,-1000.0,0.00013699,2]
[331748159,1720749038720,-1000.0,0.00013699,2]
[331748160,1720749038729,-1000.0,0.00013699,2]
[331748161,1720749038738,-1000.0,0.00013699,2]
[331748162,1720749038748,-1000.0,0.00013699,2]
[331748163,1720749038759,-1000.0,0.00013699,2]
[331748164,1720749038769,-1000.0,0.00013699,2]
[331748165,1720749038779,-1000.0,0.00013699,2]
[331748166,1720749038788,-1000.0,0.00013699,2]
[331748167,1720749038798,-1000.0,0.00013699,2]
[331748168,1720749038807,-1000.0,0.00013699,2]
[331748169,1720749038817,-1000.0,0.00013699,2]
[331748170,1720749039004,-1000.0,0.00013699,2]
[331748171,1720749039014,-1000.0,0.00013699,2]
[331748172,1720749039024,-1000.0,0.00013699,2]
[331748173,1720749039033,-1000.0,0.00013699,2]
[331748174,1720749039043,-1000.0,0.00013699,2]
[331748175,1720749039053,-1000.0,0.00013699,2]
[331748176,1720749039063,-1000.0,0.00013699,2]
[331748177,1720749039073,-1000.0,0.00013699,2]
[331748178,1720749039083,-1000.0,0.00013699,2]
[331748179,1720749039092,-1000.0,0.00013699,2]
[331748180,1720749039101,-1000.0,0.00013699,2]
[331748181,1720749039111,-1000.0,0.00013699,2]
[331748182,1720749039121,-1000.0,0.00013699,2]
[331748183,1720749039131,-1000.0,0.00013699,2]
[331748184,1720749039140,-1000.0,0.00013699,2]
[331748185,1720749039150,-1000.0,0.00013699,2]
[331748186,1720749039159,-1000.0,0.00013699,2]
[331748187,1720749039168,-1000.0,0.00013699,2]
[331748188,1720749039178,-1000.0,0.00013699,2]
[331748189,1720749039187,-1000.0,0.00013699,2]
[331748190,1720749039197,-1000.0,0.00013699,2]
[331748191,1720749039206,-1000.0,0.00013699,2]
[331748192,1720749039215,-1000.0,0.00013699,2]
[331748193,1720749039225,-1000.0,0.00013699,2]
[331748194,1720749039234,-1000.0,0.00013699,2]
[331748195,1720749039243,-1000.0,0.00013699,2]
[331748196,1720749039252,-1000.0,0.00013699,2]
[331748197,1720749039261,-1000.0,0.00013699,2]
[331748198,1720749039271,-1000.0,0.00013699,2]
[331748199,1720749039280,-754.0,0.00013699,2]
[331748200,1720749039290,-5000.0,0.000137,2]
[331748201,1720749039300,-11288.886,0.000137,2]
[331748202,1720749039310,-3265.0249,0.000137,2]
[331748203,1720749039320,-16254.909,0.000137,2]
[331748204,1720749039329,-177.44738143,0.000137,2]
[331748205,1720749039339,-3228.5311884,0.000137,2]
[331748206,1720749039348,-167.26552792,0.000137,2]
[331748207,1720749039358,-1000.0,0.000137,2]
[331748208,1720749039368,-1000.0,0.000137,2]
[331748209,1720749039378,-1000.0,0.000137,2]
[331748210,1720749039388,-1008.0,0.000137,2]
[331748211,1720749039397,-311.53237523,0.000137,2]
[331748212,1720749039407,-1598.89572,0.0001376,2]
[331748213,1720749039417,-154.829921,0.00013776,2]
[331748214,1720749039427,-150.0,0.00013781,2]
[331748215,1720749039436,-150.0,0.00013781,2]
[331748216,1720749039445,-150.0,0.00013781,2]
[331748217,1720749039455,-150.0,0.00013781,2]
[331748218,1720749039464,-150.0,0.00013781,2]
[331748219,1720749039474,-150.0,0.00013785,2]
[331748220,1720749039484,-150.0,0.00013788,2]
[331748221,1720749039495,-500.0,0.00013789,2]
[331748222,1720749039506,-200.0,0.00013789,2]
[331748223,1720749039516,-150.0,0.00013789,2]
[331748224,1720749039525,-317.87888183,0.0001379,2]
[331748225,1720749039535,-317.87888179,0.0001379,2]
[331748226,1720749039545,-317.87888179,0.0001379,2]
[331748227,1720749039555,-317.87888179,0.0001379,2]
[331748228,1720749039565,-317.87888179,0.0001379,2]
[331748229,1720749039575,-317.87888179,0.0001379,2]
[331748230,1720749039586,-150.0,0.00013791,2]
[331748231,1720749039596,-150.0,0.00013793,2]
[331748232,1720749039605,-500.0,0.00013794,2]
[331748233,1720749039614,-500.0,0.00013794,2]
[331748234,1720749039624,-500.0,0.00013794,2]
[331748235,1720749039633,-500.0,0.00013794,2]
[331748236,1720749039644,-500.0,0.00013794,2]
[331748237,1720749039653,-500.0,0.00013794,2]
[331748238,1720749039663,-500.0,0.00013794,2]
[331748239,1720749039673,-500.0,0.00013794,2]
[331748240,1720749039682,-576.15,0.00013794,2]
[331748241,1720749039692,-500.0,0.00013794,2]
[331748242,1720749039701,-150.0,0.00013795,2]
[331748243,1720749039711,-500.0,0.00013795,2]
[331748244,1720749039721,-500.0,0.00013795,2]
[331748245,1720749039730,-500.0,0.00013795,2]
[331748246,1720749039740,-500.0,0.00013795,2]
[331748247,1720749039750,-500.0,0.00013795,2]
[331748248,1720749039759,-500.55416696,0.00013795,2]
[331748249,1720749039770,-549.97,0.00013795,2]
[331748250,1720749039780,-261.51380906,0.00013795,2]
[331748251,1720749039790,-500.30847471,0.00013795,2]
[331748252,1720749039800,-501.72240931,0.00013795,2]
[331748253,1720749039809,-500.0,0.00013795,2]
[331748254,1720749039819,-500.0,0.00013795,2]
[331748255,1720749039829,-500.0,0.00013795,2]
[331748256,1720749039839,-500.0,0.00013795,2]
[331748257,1720749039849,-500.0,0.00013795,2]
[331748258,1720749039858,-500.0,0.00013795,2]
[331748259,1720749039868,-500.0,0.00013795,2]
[331748260,1720749039878,-500.0,0.00013795,2]
[331748261,1720749039887,-500.0,0.00013795,2]
[331748262,1720749039897,-502.07199942,0.00013795,2]
[331748263,1720749039906,-500.0,0.00013795,2]
[331748264,1720749039916,-500.0,0.00013795,2]
[331748265,1720749039925,-500.0,0.00013795,2]
[331748266,1720749039935,-500.0,0.00013795,2]
[331748267,1720749039944,-500.0,0.00013795,2]
[331748269,1720749039955,-627.56,0.00013795,2]
[331748270,1720749039964,-500.0,0.00013795,2]
[331748271,1720749039973,-500.0,0.00013795,2]
[331748272,1720749039982,-500.0,0.00013795,2]
[331748273,1720749039992,-514.78702918,0.00013795,2]
[331748274,1720749040001,-503.42184786,0.00013795,2]
[331748275,1720749040010,-500.0,0.00013795,2]
[331748276,1720749040020,-500.0,0.00013795,2]
[331748277,1720749040030,-574.19033907,0.00013795,2]
[331748278,1720749040039,-500.0,0.00013795,2]
[331748279,1720749040049,-500.68525396,0.00013795,2]
[331748280,1720749040058,-520.53014498,0.00013795,2]
[331748281,1720749040068,-525.66127608,0.00013795,2]
[331748282,1720749040077,-500.0,0.00013795,2]
[331748283,1720749040087,-500.0,0.00013795,2]
[331748284,1720749040097,-500.0,0.00013795,2]
[331748285,1720749040105,-500.0,0.00013795,2]
[331748286,1720749040115,-500.0,0.00013795,2]
[331748287,1720749040125,-503.32245822,0.00013795,2]
[331748288,1720749040134,-500.0,0.00013795,2]
[331748289,1720749040143,-500.0,0.00013795,2]
[331748290,1720749040153,-402.32191854,0.00013795,2]
[331748291,1720749040162,-500.30735522,0.00013795,2]
[331748292,1720749040171,-500.0,0.00013795,2]
[331748293,1720749040181,-505.67822077,0.00013795,2]
[331748294,1720749040191,-500.0,0.00013795,2]
[331748295,1720749040200,-500.0,0.00013795,2]
[331748296,1720749040210,-500.0,0.00013795,2]
[331748297,1720749040219,-500.48583073,0.00013795,2]
[331748298,1720749040228,-500.0,0.00013795,2]
[331748299,1720749040237,-500.0,0.00013795,2]
[331748300,1720749040247,-570.99829288,0.00013795,2]
[331748301,1720749040258,-500.0,0.00013795,2]
[331748302,1720749040267,-500.0,0.00013795,2]
[331748303,1720749040280,-500.0,0.00013795,2]
[331748304,1720749040288,-500.0,0.00013795,2]
[331748305,1720749040298,-500.0,0.00013795,2]
[331748306,1720749040307,-500.0,0.00013795,2]
[331748307,1720749040315,-504.23842786,0.00013795,2]
[331748308,1720749040324,-500.0,0.00013795,2]
[331748309,1720749040333,-503.52756947,0.00013795,2]
[331748310,1720749040342,-500.0,0.00013795,2]
[331748311,1720749040351,-502.62081297,0.00013795,2]
[331748312,1720749040360,-500.0,0.00013795,2]
[331748313,1720749040370,-500.0,0.00013795,2]
[331748314,1720749040379,-503.4856937,0.00013795,2]
[331748315,1720749040388,-502.60885311,0.00013795,2]
[331748316,1720749040397,-556.6036504,0.00013795,2]
[331748317,1720749040407,-502.15155753,0.00013795,2]
[331748318,1720749040416,-532.13326647,0.00013795,2]
[331748319,1720749040425,-501.80599832,0.00013795,2]
[331748320,1720749040435,-500.0,0.00013795,2]
[331748321,1720749040445,-500.0,0.00013795,2]
[331748322,1720749040455,-500.0,0.00013795,2]
[331748323,1720749040465,-500.0,0.00013795,2]
[331748324,1720749040475,-500.0,0.00013795,2]
[331748325,1720749040484,-500.0,0.00013795,2]
[331748326,1720749040495,-502.75852948,0.00013795,2]
[331748327,1720749040511,-500.0,0.00013795,2]
[331748328,1720749040521,-500.0,0.00013795,2]
[331748329,1720749040530,-500.0,0.00013795,2]
[331748330,1720749040541,-500.0,0.00013795,2]
[331748331,1720749040550,-501.52784247,0.00013795,2]
[331748332,1720749040559,-502.15711837,0.00013795,2]
[331748333,1720749040569,-500.0,0.00013795,2]
[331748334,1720749040579,-503.3977907,0.00013795,2]
[331748335,1720749040589,-501.32543204,0.00013795,2]
[331748336,1720749040598,-500.0,0.00013795,2]
[331748337,1720749040607,-503.43173656,0.00013795,2]
[331748338,1720749040617,-500.0,0.00013795,2]
[331748339,1720749040626,-500.0,0.00013795,2]
[331748340,1720749040635,-501.75245426,0.00013795,2]
[331748341,1720749040645,-500.0,0.00013795,2]
[331748342,1720749040654,-500.49815224,0.00013795,2]
[331748343,1720749040663,-500.0,0.00013795,2]
[331748344,1720749040673,-500.0,0.00013795,2]
[331748345,1720749040682,-472.82623224,0.00013795,2]
[331748346,1720749040692,-502.28564047,0.00013795,2]
[331748347,1720749040702,-500.0,0.00013795,2]
[331748348,1720749040711,-500.0,0.00013795,2]
[331748349,1720749040721,-591.13329276,0.00013795,2]
[331748350,1720749040731,-500.0,0.00013795,2]
[331748351,1720749040740,-500.0,0.00013795,2]
[331748352,1720749040750,-500.0,0.00013795,2]
[331748353,1720749040760,-503.41453007,0.00013795,2]
[331748354,1720749040769,-500.0,0.00013795,2]
[331748355,1720749040779,-500.0,0.00013795,2]
[331748356,1720749040789,-502.91360084,0.00013795,2]
[331748357,1720749040798,-503.62747932,0.00013795,2]
[331748358,1720749040808,-500.0,0.00013795,2]
[331748359,1720749040818,-500.0,0.00013795,2]
[331748360,1720749040827,-500.0,0.00013795,2]
[331748361,1720749040836,-500.0,0.00013795,2]
[331748362,1720749040846,-500.0,0.00013795,2]
[331748363,1720749040856,-500.0,0.00013795,2]
[331748364,1720749040865,-500.0,0.00013795,2]
[331748365,1720749040875,-500.0,0.00013795,2]
[331748366,1720749040885,-500.0,0.00013795,2]
[331748367,1720749040895,-503.2178365,0.00013795,2]
[331748368,1720749040904,-500.0,0.00013795,2]
[331748369,1720749040914,-500.0,0.00013795,2]
[331748370,1720749040924,-500.0,0.00013795,2]
[331748371,1720749040933,-500.0,0.00013795,2]
[331748372,1720749040942,-501.63002493,0.00013795,2]
[331748373,1720749040952,-500.0,0.00013795,2]
[331748374,1720749040961,-568.84820325,0.00013795,2]
[331748375,1720749040971,-500.0,0.00013795,2]
[331748376,1720749040980,-500.0,0.00013795,2]
[331748377,1720749040990,-500.0,0.00013795,2]
[331748378,1720749040999,-615.71165777,0.00013795,2]
[331748379,1720749041009,-500.89680113,0.00013795,2]
[331748380,1720749041019,-500.0,0.00013795,2]
[331748381,1720749041028,-500.0,0.00013795,2]
[331748382,1720749041037,-500.0,0.00013795,2]
[331748383,1720749041046,-502.17497406,0.00013795,2]
[331748384,1720749041055,-618.33616537,0.00013795,2]
[331748385,1720749041064,-500.0,0.00013795,2]
[331748386,1720749041073,-526.78005452,0.00013795,2]
[331748387,1720749041082,-500.0,0.00013795,2]
[331748388,1720749041091,-500.0,0.00013795,2]
[331748389,1720749041100,-500.0,0.00013795,2]
[331748390,1720749041109,-500.0,0.00013795,2]
[331748391,1720749041118,-502.19456999,0.00013795,2]
[331748392,1720749041127,-500.0,0.00013795,2]
[331748393,1720749041136,-501.70084347,0.00013795,2]
[331748394,1720749041145,-500.0,0.00013795,2]
[331748395,1720749041154,-509.21,0.00013795,2]
[331748396,1720749041163,-500.0,0.00013795,2]
[331748397,1720749041172,-500.0,0.00013795,2]